fUSD/lending_fUSD_20260113
["ID","MTS","AMOUNT","RATE_DAILY","PERIOD"]
[401486510,1768262483818,3286.61912463,0.00011806,2]
[401486516,1768263031933,-784.2222751,0.00012849,2]
[401486517,1768263031943,-2169.192,0.00013249,2]
[401486518,1768263031953,-172.975,0.00013249,2]
[401486519,1768263031962,-931.29072491,0.00013427,2]
[401486520,1768263031974,-870.37894982,0.00013427,2]
[401486521,1768263031983,-152.06497503,0.00013443,2]
[401486522,1768263031992,-212.13152889,0.00013443,2]
[401486523,1768263032002,-150.0,0.00013492,2]
[401486524,1768263032011,-1200.0,0.00013492,2]
[401486525,1768263032020,-244.705361,0.00013492,2]
[401486526,1768263032030,-6778.1427809,0.00013493,2]
[401486527,1768263032041,-931.037,0.00013493,2]
[401486528,1768263032091,-10384.27350452,0.00013493,2]
[401486529,1768263032101,-161.0441499,0.00013493,2]
[401486530,1768263032110,-2930.7898549,0.00013564,2]
[401486531,1768263032120,-4139.14998321,0.00013564,2]
[401486532,1768263032129,-5355.9693,0.00013564,2]
[401486533,1768263032139,-9999.99,0.00013593,2]
[401486535,1768263032149,-150.99,0.00013593,2]
[401486537,1768263032159,-7152.5665293,0.00013693,2]
[401486538,1768263032168,-712.3265196,0.00013693,2]
[401486539,1768263032178,-80713.15923599,0.00013693,2]
[401486540,1768263032190,-2286.90336051,0.00013693,2]
[401486542,1768263032201,-10957.99854066,0.00013693,2]
[401486544,1768263032213,-879.45743612,0.00013693,2]
[401486546,1768263032224,-2127.37987507,0.00013693,2]
[401486560,1768263038011,-2573.28862862,0.00013693,2]
[401486562,1768263038024,-655.0267112,0.00013693,2]
[401486565,1768263038857,-1369.85841438,0.00013693,2]
[401486566,1768263038866,-10362.0282181,0.00013693,2]
[401486567,1768263038876,-6262.5438378,0.00013693,2]
[401486568,1768263038886,-500.0,0.00013698,2]
[401486569,1768263038896,-500.0,0.00013698,2]
[401486570,1768263038906,-500.0,0.00013698,2]
[401486571,1768263038916,-500.0,0.00013698,2]
[401486572,1768263038925,-500.0,0.00013698,2]
[401486573,1768263038936,-500.0,0.00013698,2]
[401486574,1768263038945,-296.44,0.00013952,2]
[401486575,1768263038955,-18093.45328542,0.00013983,2]
[401486576,1768263038964,-163.43,0.00014,2]
[401486577,1768263038975,-2482.3,0.00014063,2]
[401486578,1768263038985,-166.66,0.00014378,2]
[401486579,1768263038995,-18093.45328542,0.00014472,2]
[401486580,1768263039005,-478.66629085,0.00014497,2]
[401486581,1768263039015,-151.0,0.00014497,2]
[401486582,1768263039025,-200.0,0.00014497,2]
[401486583,1768263039034,-1000.0,0.00014501,2]
[401486584,1768263039044,-195.0,0.00014574,2]
[401486585,1768263039053,-195.0,0.00014574,2]
[401486586,1768263039063,-195.0,0.00014574,2]
[401486587,1768263039072,-195.0,0.00014574,2]
[401486588,1768263039083,-344.98670239,0.00014574,2]
[401486589,1768263039092,-312.0,0.00014603,2]
[401486590,1768263039102,-255.0,0.00014612,2]
[401486591,1768263039113,-2064.25,0.00014633,2]
[401486593,1768263039123,-200.0,0.00014642,2]
[401486595,1768263039133,-166.66,0.00014648,2]
[401486598,1768263039143,-200.0,0.00014788,2]
[401486600,1768263039153,-2064.25,0.00014836,2]
[401486603,1768263039164,-1680.0,0.00014841,2]
[401486605,1768263039174,-166.66,0.00014852,2]
[401486606,1768263039184,-175.9,0.00014882,2]
[401486609,1768263039194,-3240.0,0.00014906,2]
[401486611,1768263039204,-200.0,0.00014936,2]
[401486613,1768263039218,-166.66,0.00014943,2]
[401486615,1768263039228,-18093.45328542,0.00014962,2]
[401486617,1768263039238,-2064.25,0.00015038,2]
[401486619,1768263039248,-200.0,0.00015086,2]
[401486621,1768263039257,-4598.1737542,0.00015194,2]
[401486623,1768263039268,-6262.5438378,0.00015194,2]
[401486625,1768263039278,-205.86,0.00015207,2]
[401486627,1768263039288,-166.66,0.00015239,2]
[401486629,1768263039298,-2064.25,0.00015241,2]
[401486631,1768263039307,-10362.0282181,0.00015265,2]
[401486633,1768263039316,-606.23,0.00015298,2]
[401486635,1768263039325,-166.66,0.00015327,2]
[401486637,1768263039335,-500.0,0.00015364,2]
[401486639,1768263039348,-824.81,0.00015438,2]
[401486641,1768263039357,-2064.25,0.00015444,2]
[401486643,1768263039367,-500.0,0.00015451,2]
[401486645,1768263039376,-17593.08973329,0.00015452,2]
[401486647,1768263039390,-326.7999999,0.00015452,2]
[401486650,1768263039403,-173.56355223,0.00015452,2]
[401486652,1768263039412,-342.9,0.00015534,2]
[401486654,1768263039422,-208.53644777,0.00015534,2]
[401486656,1768263039433,-281.95004733,0.00015534,2]
[401486659,1768263039454,-66.3235049,0.00015534,2]
[401486661,1768263039464,-556.81,0.00015534,2]
[401486663,1768263039474,-556.81,0.00015534,2]
[401486665,1768263039484,-556.81,0.00015534,2]
[401486667,1768263039494,-556.81,0.00015534,2]
[401486669,1768263039503,-166.66,0.00015535,2]
[401486708,1768263039865,-196.00514886,0.00015547,2]
[401486710,1768263039879,-151.0,0.00015557,2]
[401486712,1768263039889,-151.0,0.00015557,2]
[401486714,1768263039899,-421.57134624,0.00015616,2]
[401486717,1768263039914,-78.42865376,0.00015616,2]
[401486719,1768263039926,-500.0,0.00015616,2]
[401486721,1768263039941,-2064.25,0.00015647,2]
[401486723,1768263039951,-556.81,0.00015656,2]
[401486725,1768263039960,-161.04414988,0.00015697,2]
[401486727,1768263039970,-166.66,0.00015802,2]
[401486729,1768263039980,-433.0,0.00015826,2]
[401486731,1768263039989,-2115.74829805,0.00015835,2]
[401487146,1768263044076,-1001.9863755,0.00015835,2]
[401487148,1768263044095,-364.47543328,0.00015835,2]
[401487150,1768263044107,-478.93725523,0.00015835,2]
[401487246,1768263045054,-2778.85263794,0.00015835,2]
[401487248,1768263045064,-2064.25,0.00015849,2]
[401487250,1768263045074,-1000.0,0.00015918,2]
[401487252,1768263045083,-334.98115102,0.00015924,2]
[401487254,1768263045093,-801.3673346,0.0001593,2]
[401487256,1768263045103,-18093.45328542,0.00015941,2]
[401487259,1768263045116,-205.86,0.00016052,2]
[401487261,1768263045126,-2064.25,0.00016052,2]
[401487263,1768263045135,-172.71349921,0.00016116,2]
[401487346,1768263046006,-2608.63388952,0.00016116,2]
[401487405,1768264232087,-200.0,0.00013987,2]
[401487408,1768264232097,-200.71809639,0.00014587,2]
[401487411,1768264232107,-500.0,0.0001463,2]
[401487413,1768264232116,-188.73,0.00014638,2]
[401487415,1768264232125,-1000.0,0.00014638,2]
[401487417,1768264232135,-3393.64096078,0.00014684,2]
[401487418,1768264232211,-1499.16903922,0.00014684,2]
[401487419,1768264232220,-1957.16,0.00014891,2]
[401487420,1768264232230,-300.0,0.00015125,2]
[401487421,1768264232240,-1200.0,0.00015125,2]
[401487422,1768264232250,-2661.51,0.00015126,2]
[401487423,1768264232259,-999.0,0.00015149,3]
[401487424,1768264232269,-461.12909428,0.00015151,2]
[401487425,1768264232278,-1735.354,0.00015179,2]
[401487426,1768264232287,-172.975,0.00015179,2]
[401487427,1768264232297,-285.90524956,0.0001532,2]
[401487428,1768264232307,-750.12222844,0.0001534,2]
[401487429,1768264232316,-1059.39646409,0.0001534,2]
[401487430,1768264232326,-1370.8332,0.0001534,2]
[401487431,1768264232335,-300.0,0.00015388,2]
[401487432,1768264232346,-183.05883265,0.00015388,2]
[401487433,1768264232355,-185.83373875,0.00015388,2]
[401487434,1768264232364,-233.84961539,0.00015388,2]
[401487435,1768264232374,-207.10243555,0.00015388,2]
[401487436,1768264232384,-3393.2867,0.00015389,2]
[401487437,1768264232394,-700.75221137,0.00015389,2]
[401487438,1768264232406,-34389.09835446,0.00015389,2]
[401487439,1768264232418,-8188.94331907,0.00015389,2]
[401487440,1768264232429,-2929.71303019,0.00015389,2]
[401487443,1768264232441,-1247.39962148,0.00015389,2]
[401487445,1768264232452,-1686.79317976,0.00015389,2]
[401487448,1768264232503,-9671.7314083,0.00015389,2]
[401487597,1768264240319,-21175.09977537,0.00015389,2]
[401487598,1768264240329,-986.801,0.00015389,2]
[401487599,1768264240339,-188.73,0.00015451,2]
[401487600,1768264240349,-161.04414988,0.00015461,2]
[401487601,1768264240358,-602.05208241,0.00015461,2]
[401487602,1768264240368,-7237.38131424,0.00015461,2]
[401487603,1768264240378,-150.99,0.00015468,2]
[401487604,1768264240388,-9999.99,0.00015468,2]
[401487605,1768264240398,-9999.99,0.00015488,2]
[401487606,1768264240410,-16511.78,0.00015488,2]
[401487607,1768264240421,-576.56,0.00015488,2]
[401487608,1768264240430,-4371.98652074,0.00015489,2]
[401487609,1768264240443,-1059.80161734,0.00015489,2]
[401487610,1768264240461,-822.57610395,0.00015489,2]
[401487611,1768264240474,-949.309992,0.00015489,2]
[401487612,1768264240512,-992796.32576597,0.00015489,2]
[401487613,1768264240522,-150.0,0.00015561,2]
[401487614,1768264240531,-500.0,0.00015562,2]
[401487615,1768264240541,-504161.7830909,0.00015589,2]
[401487616,1768264240551,-2938.3468936,0.00015589,2]
[401487617,1768264240561,-7224.6233316,0.00015589,2]
[401487618,1768264240571,-5181.0141091,0.00015589,2]
[401487619,1768264240580,-602.05208237,0.00015732,2]
[401487620,1768264240590,-151.0,0.00015857,2]
[401487621,1768264240600,-1000.0,0.00015918,2]
[401487622,1768264240609,-1982.0,0.00016,2]
[401487623,1768264240618,-200.0,0.00016116,2]
[401487624,1768264240628,-200.0,0.00016116,2]
[401487625,1768264240637,-1924.9224747,0.00016116,2]
[401487626,1768264240646,-4982.4,0.00016116,2]
[401487627,1768264240656,-150.0,0.000162,2]
[401487628,1768264240665,-150.0,0.000162,2]
[401487629,1768264240675,-150.0,0.000162,2]
[401487630,1768264240684,-150.0,0.000162,2]
[401487631,1768264240694,-150.0,0.000162,2]
[401487632,1768264240704,-150.0,0.000162,2]
[401487633,1768264240713,-150.0,0.000162,2]
[401487635,1768264240722,-150.0,0.000162,2]
[401487636,1768264240732,-150.0,0.000162,2]
[401487637,1768264240741,-150.0,0.000162,2]
[401487638,1768264240750,-150.0,0.000162,2]
[401487639,1768264240760,-150.0,0.000162,2]
[401487640,1768264240769,-188.73,0.00016264,2]
[401487641,1768264240780,-166.66,0.00016276,2]
[401487642,1768264240789,-200.0,0.00016277,2]
[401487643,1768264240798,-200.0,0.00016277,2]
[401487644,1768264240807,-150.0,0.0001632,2]
[401487645,1768264240816,-150.0,0.00016338,2]
[401487647,1768264240826,-150.0,0.00016338,2]
[401487649,1768264240835,-150.0,0.0001638,2]
[401487651,1768264240844,-150.0,0.0001638,2]
[401487653,1768264240853,-150.0,0.0001638,2]
[401487655,1768264240862,-150.0,0.00016425,2]
[401487657,1768264240871,-500.0,0.00016438,2]
[401487659,1768264240881,-500.0,0.00016438,2]
[401487661,1768264240892,-500.0,0.00016438,2]
[401487663,1768264240901,-500.0,0.00016438,2]
[401487665,1768264240911,-577.05,0.00016438,2]
[401487667,1768264240920,-151.0,0.00016438,2]
[401487668,1768264240930,-150.0,0.0001644,2]
[401487669,1768264240939,-200.0,0.0001644,2]
[401487670,1768264240948,-200.0,0.0001644,2]
[401487671,1768264240957,-250.0,0.00016463,2]
[401487672,1768264240967,-1000.0,0.00016467,2]
[401487673,1768264240976,-150.0,0.00016477,2]
[401487674,1768264240985,-150.0,0.00016477,2]
[401487675,1768264240995,-510.0,0.00016511,2]
[401487676,1768264241004,-1000.0,0.00016515,2]
[401487677,1768264241013,-420.0,0.00016551,2]
[401487678,1768264241022,-150.0,0.0001656,2]
[401487679,1768264241031,-150.0,0.0001656,2]
[401487680,1768264241041,-150.0,0.0001656,2]
[401487681,1768264241050,-150.0,0.0001656,2]
[401487682,1768264241059,-158.63788363,0.00016604,2]
[401487683,1768264241068,-150.0,0.00016615,2]
[401487684,1768264241077,-150.0,0.00016615,2]
[401487685,1768264241087,-1680.0,0.00016635,2]
[401487686,1768264241096,-150.0,0.0001665,2]
[401487687,1768264241106,-150.0,0.0001668,2]
[401487688,1768264241115,-6262.5438378,0.00016696,2]
[401487689,1768264241124,-159.86,0.00016712,2]
[401487690,1768264241134,-150.0,0.0001674,2]
[401487691,1768264241143,-150.0,0.0001674,2]
[401487692,1768264241152,-150.0,0.0001674,2]
[401487693,1768264241161,-166.66,0.00016751,2]
[401487694,1768264241170,-150.0,0.00016754,2]
[401487695,1768264241179,-150.0,0.00016754,2]
[401487696,1768264241188,-1885.0,0.0001677,2]
[401487697,1768264241198,-150.0,0.000168,2]
[401487698,1768264241207,-150.0,0.000168,2]
[401487699,1768264241216,-824.81,0.00016808,2]
[401487700,1768264241226,-467.15,0.00016831,2]
[401487701,1768264241235,-7452.82106087,0.00016842,10]
[401487702,1768264241245,-150.0,0.00016875,2]
[401487703,1768264241255,-150.0,0.00016892,2]
[401487704,1768264241264,-150.0,0.00016892,2]
[401487705,1768264241273,-150.0,0.0001692,2]
[401487706,1768264241282,-150.0,0.0001692,2]
[401487707,1768264241291,-150.0,0.0001692,2]
[401487708,1768264241301,-150.0,0.0001692,2]
[401487709,1768264241310,-500.0,0.0001695,2]
[401487710,1768264241319,-500.0,0.0001695,2]
[401487711,1768264241328,-500.0,0.0001695,2]
[401487712,1768264241338,-500.0,0.0001695,2]
[401487713,1768264241347,-500.0,0.0001695,2]
[401487714,1768264241356,-500.0,0.0001695,2]
[401487715,1768264241365,-500.0,0.0001695,2]
[401487716,1768264241375,-500.0,0.0001695,2]
[401487717,1768264241384,-500.0,0.0001695,2]
[401487718,1768264241392,-500.0,0.0001695,2]
[401487719,1768264241407,-500.0,0.0001695,2]
[401487720,1768264241416,-500.0,0.0001695,2]
[401487721,1768264241425,-250.0,0.0001695,2]
[401487722,1768264241435,-500.0,0.0001695,2]
[401487723,1768264241444,-500.0,0.0001695,2]
[401487724,1768264241453,-250.0,0.0001695,2]
[401487725,1768264241462,-500.0,0.0001695,2]
[401487726,1768264241471,-500.0,0.0001695,2]
[401487727,1768264241480,-500.0,0.0001695,2]
[401487728,1768264241489,-500.0,0.0001695,2]
[401487729,1768264241499,-500.0,0.0001695,2]
[401487730,1768264241509,-500.0,0.0001695,2]
[401487731,1768264241518,-500.0,0.0001695,2]
[401487732,1768264241527,-500.0,0.0001695,2]
[401487733,1768264241537,-500.0,0.0001695,2]
[401487734,1768264241546,-500.0,0.0001695,2]
[401487735,1768264241555,-500.0,0.0001695,2]
[401487736,1768264241564,-250.0,0.0001695,2]
[401487737,1768264241573,-500.0,0.0001695,2]
[401487738,1768264241582,-500.0,0.0001695,2]
[401487739,1768264241591,-500.0,0.0001695,2]
[401487740,1768264241600,-250.0,0.0001695,2]
[401487741,1768264241609,-500.0,0.0001695,2]
[401487742,1768264241618,-500.0,0.0001695,2]
[401487743,1768264241628,-250.0,0.0001695,2]
[401487744,1768264241637,-500.0,0.0001695,2]
[401487745,1768264241646,-250.0,0.0001695,2]
[401487746,1768264241655,-250.0,0.0001695,2]
[401487747,1768264241664,-500.0,0.0001695,2]
[401487748,1768264241673,-250.0,0.0001695,2]
[401487749,1768264241682,-500.0,0.0001695,2]
[401487750,1768264241692,-500.0,0.0001695,2]
[401487751,1768264241701,-250.0,0.0001695,2]
[401487752,1768264241710,-500.0,0.0001695,2]
[401487753,1768264241719,-250.0,0.0001695,2]
[401487754,1768264241729,-500.0,0.0001695,2]
[401487755,1768264241739,-394.3952879,0.0001695,2]
[401487756,1768264241748,-500.0,0.0001695,2]
[401487757,1768264241757,-500.0,0.0001695,2]
[401487758,1768264241766,-204.8394393,0.0001695,2]
[401487759,1768264241775,-533.88981491,0.0001695,2]
[401487760,1768264241785,-151.0,0.0001695,2]
[401487761,1768264241794,-322.6107,0.0001695,2]
[401487762,1768264241803,-250.0,0.0001695,2]
[401487763,1768264241812,-250.0,0.0001695,2]
[401487764,1768264241821,-250.0,0.0001695,2]
[401487765,1768264241830,-250.0,0.0001695,2]
[401487766,1768264241840,-250.0,0.0001695,2]
[401487767,1768264241849,-250.0,0.0001695,2]
[401487768,1768264241858,-250.0,0.0001695,2]
[401487769,1768264241867,-250.0,0.0001695,2]
[401487770,1768264241876,-250.0,0.0001695,2]
[401487771,1768264241888,-250.0,0.0001695,2]
[401487772,1768264241897,-998.0,0.0001695,2]
[401487773,1768264241907,-250.0,0.0001695,2]
[401487774,1768264241916,-250.0,0.0001695,2]
[401487775,1768264241926,-250.0,0.0001695,2]
[401487776,1768264241935,-250.0,0.0001695,2]
[401487777,1768264241945,-250.0,0.0001695,2]
[401487778,1768264241954,-250.0,0.0001695,2]
[401487779,1768264241964,-250.0,0.0001695,2]
[401487780,1768264241972,-250.0,0.0001695,2]
[401487781,1768264241982,-250.0,0.0001695,2]
[401487782,1768264241991,-250.0,0.0001695,2]
[401487783,1768264242296,-250.0,0.0001695,2]
[401487784,1768264242307,-250.0,0.0001695,2]
[401487785,1768264242317,-250.0,0.0001695,2]
[401487786,1768264242326,-250.0,0.0001695,2]
[401487787,1768264242336,-620.0,0.0001695,2]
[401487788,1768264242345,-1885.0,0.00016981,2]
[401487789,1768264242355,-161913.58,0.00016986,2]
[401487790,1768264242364,-250.0,0.00017,2]
[401487791,1768264242373,-150.0,0.00017031,2]
[401487792,1768264242382,-150.0,0.00017031,2]
[401487793,1768264242393,-150.0,0.0001704,2]
[401487794,1768264242402,-500.0,0.00017072,2]
[401487795,1768264242412,-500.0,0.00017072,2]
[401487796,1768264242421,-510.77976475,0.00017073,2]
[401487797,1768264242430,-500.70457439,0.00017073,2]
[401487798,1768264242440,-500.0,0.00017073,2]
[401487799,1768264242449,-500.0,0.00017073,2]
[401487800,1768264242459,-487.57806594,0.00017073,2]
[401487801,1768264242468,-500.0,0.00017073,2]
[401487802,1768264242477,-500.0,0.00017073,2]
[401487803,1768264242487,-500.0,0.00017073,2]
[401487804,1768264242496,-500.57959935,0.00017073,2]
[401487805,1768264242505,-500.0,0.00017073,2]
[401487806,1768264242515,-165.93386756,0.00017073,2]
[401487807,1768264242524,-500.0,0.00017073,2]
[401487808,1768264242533,-501.54454633,0.00017073,2]
[401487809,1768264242542,-500.0,0.00017073,2]
[401487810,1768264242552,-500.0,0.00017073,2]
[401487811,1768264242561,-500.0,0.00017073,2]
[401487812,1768264242570,-500.0,0.00017073,2]
[401487813,1768264242579,-500.0,0.00017073,2]
[401487814,1768264242588,-500.0,0.00017073,2]
[401487815,1768264242598,-500.0,0.00017073,2]
[401487816,1768264242609,-633.20600999,0.00017073,2]
[401487817,1768264242618,-500.0,0.00017073,2]
[401487818,1768264242627,-500.0,0.00017073,2]
[401487819,1768264242637,-151.29755926,0.00017073,2]
[401487820,1768264242645,-188.73,0.00017077,2]
[401487821,1768264242655,-500.0,0.00017098,2]
[401487822,1768264242664,-150.0,0.000171,2]
[401487823,1768264242673,-150.0,0.000171,2]
[401487824,1768264242682,-150.0,0.000171,2]
[401487825,1768264242691,-150.0,0.000171,2]
[401487826,1768264242700,-290.33169083,0.00017104,2]
[401487827,1768264242710,-1000.0,0.00017112,2]
[401487828,1768264242719,-150.0,0.0001716,2]
[401487829,1768264242728,-3996.0,0.00017162,2]
[401487830,1768264242737,-150.0,0.00017169,2]
[401487831,1768264242746,-150.0,0.00017169,2]
[401487832,1768264242755,-290.8,0.00017197,2]
[401487833,1768264242764,-30000.0,0.000172,2]
[401487834,1768264242774,-606.23,0.0001721,2]
[401487835,1768264242783,-290.8,0.0001727,2]
[401487836,1768264242792,-5390.0,0.00017272,2]
[401487837,1768264242801,-150.0,0.0001728,2]
[401487838,1768264242811,-150.0,0.0001728,2]
[401487839,1768264242820,-150.0,0.0001728,2]
[401487840,1768264242829,-150.0,0.0001728,2]
[401487841,1768264242838,-505.0,0.00017284,2]
[401487842,1768264242847,-1201.0,0.00017284,2]
[401487843,1768264242856,-914.0,0.00017284,2]
[401487844,1768264242865,-3469.0,0.00017284,2]
[401487845,1768264242875,-1405.0,0.00017284,2]
[401487846,1768264242887,-614.0,0.00017284,2]
[401487847,1768264242897,-150.0,0.00017292,2]
[401487848,1768264242906,-150.0,0.00017292,2]
[401487849,1768264242917,-150.0,0.00017292,2]
[401487850,1768264242926,-200.0,0.00017292,2]
[401487851,1768264242935,-150.0,0.00017292,2]
[401487853,1768264242944,-150.0,0.00017292,2]
[401487855,1768264242953,-171.0,0.00017292,2]
[401487856,1768264242963,-170.0,0.00017292,2]
[401487859,1768264242972,-150.0,0.00017292,2]
[401487863,1768264242981,-150.0,0.00017292,2]
[401487865,1768264242990,-150.0,0.00017292,2]
[401487868,1768264243000,-150.0,0.00017292,2]
[401487870,1768264243009,-150.0,0.00017292,2]
[401487872,1768264243018,-150.0,0.00017292,2]
[401487874,1768264243027,-186.73123171,0.000173,2]
[401487875,1768264243036,-150.0,0.00017308,2]
[401487876,1768264243045,-150.0,0.00017308,2]
[401487877,1768264243054,-150.0,0.00017325,2]
[401487878,1768264243064,-290.8,0.00017343,2]
[401487879,1768264243073,-161.525335,0.00017368,2]
[401487880,1768264243082,-151.0,0.00017368,2]
[401487881,1768264243091,-151.0,0.00017368,2]
[401487882,1768264243101,-151.0,0.00017368,2]
[401487883,1768264243110,-151.0,0.00017368,2]
[401487884,1768264243119,-151.0,0.00017368,2]
[401487885,1768264243129,-151.0,0.00017368,2]
[401487886,1768264243138,-151.0,0.00017368,2]
[401487887,1768264243147,-151.0,0.00017368,2]
[401487888,1768264243156,-151.0,0.00017368,2]
[401487889,1768264243166,-151.0,0.00017368,2]
[401487890,1768264243175,-151.0,0.00017368,2]
[401487891,1768264243184,-151.0,0.00017368,2]
[401487892,1768264243193,-151.0,0.00017368,2]
[401487893,1768264243203,-170.076274,0.00017368,2]
[401487894,1768264243213,-239.21511141,0.00017368,2]
[401487895,1768264243222,-229.121769,0.00017368,2]
[401487896,1768264243231,-151.0,0.00017368,2]
[401487897,1768264243241,-151.0,0.00017368,2]
[401487898,1768264243250,-151.0,0.00017368,2]
[401487899,1768264243259,-151.0,0.00017368,2]
[401487900,1768264243269,-170.276102,0.00017368,2]
[401487901,1768264243279,-151.0,0.00017368,2]
[401487902,1768264243288,-165.460861,0.00017368,2]
[401487903,1768264243297,-1203.613788,0.00017368,2]
[401487904,1768264243306,-151.0,0.00017368,2]
[401487905,1768264243316,-1203.613788,0.00017368,2]
[401487906,1768264243325,-151.0,0.00017368,2]
[401487907,1768264243335,-1203.613788,0.00017368,2]
[401487908,1768264243344,-335.743869,0.00017368,2]
[401487909,1768264243354,-335.743869,0.00017368,2]
[401487910,1768264243363,-151.0,0.00017368,2]
[401487911,1768264243373,-335.743869,0.00017368,2]
[401487912,1768264243382,-151.0,0.00017368,2]
[401487913,1768264243391,-151.0,0.00017368,2]
[401487914,1768264243400,-335.743869,0.00017368,2]
[401487915,1768264243410,-209.244302,0.00017368,2]
[401487916,1768264243419,-151.0,0.00017368,2]
[401487917,1768264243428,-151.0,0.00017368,2]
[401487918,1768264243438,-232.623086,0.00017368,2]
[401487919,1768264243447,-151.0,0.00017368,2]
[401487920,1768264243456,-232.623086,0.00017368,2]
[401487921,1768264243465,-151.0,0.00017368,2]
[401487922,1768264243475,-232.623086,0.00017368,2]
[401487923,1768264243483,-151.0,0.00017368,2]
[401487924,1768264243492,-232.623086,0.00017368,2]
[401487925,1768264243502,-256.420569,0.00017368,2]
[401487926,1768264243511,-256.420569,0.00017368,2]
[401487927,1768264243520,-151.0,0.00017368,2]
[401487928,1768264243531,-256.420569,0.00017368,2]
[401487929,1768264243540,-189.779945,0.00017368,2]
[401487930,1768264243549,-256.420569,0.00017368,2]
[401487931,1768264243559,-216.579647,0.00017368,2]
[401487932,1768264243568,-332.420052,0.00017368,2]
[401487933,1768264243577,-332.420052,0.00017368,2]
[401487934,1768264243586,-332.420052,0.00017368,2]
[401487935,1768264243595,-156.245684,0.00017368,2]
[401487936,1768264243604,-332.420052,0.00017368,2]
[401487937,1768264243614,-156.245684,0.00017368,2]
[401487938,1768264243623,-156.245684,0.00017368,2]
[401487939,1768264243633,-156.245684,0.00017368,2]
[401487940,1768264243642,-151.0,0.00017368,2]
[401487941,1768264243652,-151.0,0.00017368,2]
[401487942,1768264243661,-151.0,0.00017368,2]
[401487943,1768264243671,-151.0,0.00017368,2]
[401487944,1768264243680,-1172.752852,0.00017368,2]
[401487945,1768264243689,-151.0,0.00017368,2]
[401487946,1768264243698,-1172.752852,0.00017368,2]
[401487947,1768264243708,-151.0,0.00017368,2]
[401487948,1768264243717,-1172.752852,0.00017368,2]
[401487949,1768264243726,-1172.752852,0.00017368,2]
[401487950,1768264243736,-151.0,0.00017368,2]
[401487951,1768264243745,-151.0,0.00017368,2]
[401487952,1768264243754,-797.617212,0.00017368,2]
[401487953,1768264243763,-797.617212,0.00017368,2]
[401487954,1768264243772,-797.617212,0.00017368,2]
[401487955,1768264243781,-797.617212,0.00017368,2]
[401487956,1768264243791,-208.08088,0.00017368,2]
[401487957,1768264243800,-208.08088,0.00017368,2]
[401487958,1768264243809,-151.0,0.00017368,2]
[401487959,1768264243819,-320.995719,0.00017368,2]
[401487960,1768264243828,-208.08088,0.00017368,2]
[401487961,1768264243837,-151.0,0.00017368,2]
[401487962,1768264243847,-320.995719,0.00017368,2]
[401487963,1768264243857,-208.08088,0.00017368,2]
[401487964,1768264243866,-187.206296,0.00017368,2]
[401487965,1768264243875,-151.0,0.00017368,2]
[401487966,1768264243887,-320.995719,0.00017368,2]
[401487967,1768264243896,-320.995719,0.00017368,2]
[401487968,1768264243906,-151.0,0.00017368,2]
[401487969,1768264243915,-151.0,0.00017368,2]
[401487970,1768264243924,-151.0,0.00017368,2]
[401487971,1768264243934,-548.389332,0.00017368,2]